{"text_format":"1","workbook":"xlsx","n_sheets":6,"sheets":["Instructions","Appliances","Low-Flow Fixtures","Lighting","Cooling","Lookups"],"not_rendered":{"charts":0,"images":0,"macros":1,"external_links":0,"defined_names":0,"comments":0,"pivot_tables":0},"unopened":[],"bounds":{"document_bytes":16777216,"sheet_cells":100000,"rows_first":2000,"rows_last":500,"rows_between":2000,"halvings":0,"cell_chars":16384,"cell_head_chars":4096},"cells_cut":0,"cells_raw":0,"read":"whole","date_system":"1900"}

{"sheet":"Instructions","index":0,"n_rows":21,"n_cols":2,"rows_kept":21,"cut":false,"hidden":false,"merged":[]}
[]
[null,"In-Unit Measures during COVID-19"]
[]
[null,"The Multifamily Performance Program (MPP) team understands that during the time of COVID-19 it may not be possible to enter a dwelling unit to investigate the existing conditions of certain components. Please use the below flow chart to determine how to gather existing conditions data for appliances, low-flow fixtures, lighting, and cooling  within dwelling units. \n\nThe New York State Energy Research and Development Authority (NYSERDA) is providing guidance on our clean energy construction programs as it relates to the State’s response to COVID-19. We understand this situation is rapidly changing, and our teams are here to help you navigate our programs during this unprecedented time.  Please refer to NYSERDA’s Response to COVID-19 and Resources webpage (https://www.nyserda.ny.gov/ny/COVID-19-Response) for the latest COVID-19 guidance and updates, as well as the New York Forward Website (https://forward.ny.gov/) before entering any dwelling units or buildings."]
[]
[]
[]
[]
[]
[]
[]
[]
[]
[]
[]
[]
[]
[]
[]
[]
[null,"\n\nPlease note, this reference document is meant to complement the guidance in the Simulation Guidelines and quality control flags built into the SAV-IT. Please be aware that any flags seen in the SAV-IT supersede any assumptions provided in this reference document."]

{"sheet":"Appliances","index":1,"n_rows":27,"n_cols":3,"rows_kept":27,"cut":false,"hidden":false,"merged":[[2,0,5,0],[7,0,10,0],[12,0,18,0],[26,1,26,2],[0,0,0,2],[20,0,24,0]]}
["Instructions: Please fill out the blue cells with item details. Assumed existing energy details will be auto-populated in the white cells. Please use these auto-populated assumed existing consumption per appliance, or per cycle for your calculations."]
[]
["Refrigerators","Date Manufactured"]
[null,"Refrigerator Type"]
[null,"Proposed Refrigerator Volume in ft3 (based on proposed unit)"]
[null,"Existing kWh/yr. consumption per refrigerator",{"$f":"IFERROR(IF(C5=\"\",\"-\",ROUNDUP(VLOOKUP(C3&C4,Lookups!A10:D73,4,FALSE),0)),\"-\")","v":"-"}]
[]
["Dishwashers","Dishwasher Type"]
[null,"Compact vs. Standard Definition",{"$f":"IF(C8=\"\",\"-\",IF(C8=\"Compact\",\"Capacity less than eight place settings plus six serving pieces.\",\"Capacity equal to or greater than eight place settings plus six serving pieces.\"))","v":"-"}]
[null,"Existing kWh/yr. consumption per Dishwasher",{"$f":"IFERROR(VLOOKUP(Appliances!C8,Lookups!G9:I10,2,FALSE),\"-\")","v":"-"}]
[null,"Existing gallons/cycle consumption per dishwasher",{"$f":"IFERROR(VLOOKUP(Appliances!C8,Lookups!G9:I10,3,FALSE),\"-\")","v":"-"}]
[]
["In-Unit Clothes Washers","Date Manufactured"]
[null,"Clothes Washer Type"]
[null,"Clothes Washer Capacity (ft3)"]
[null,"Energy Factor (ft3/kWh/cycle)",{"$f":"IFERROR(IF(C15=\"\",\"-\",VLOOKUP(C13&C14,Lookups!N9:Q17,3,FALSE)),\"-\")","v":"-"}]
[null,"kWh/cycle",{"$f":"IFERROR(IF(C15=\"\",\"-\",C15/C16),\"-\")","v":"-"}]
[null,"Water Factor (gal/cycle/ft3)",{"$f":"IFERROR(IF(C15=\"\",\"-\",VLOOKUP(C13&C14,Lookups!N9:Q17,4,FALSE)),\"-\")","v":"-"}]
[null,"gal/cycle",{"$f":"IFERROR(IF(C15=\"\",\"-\",C15*C18),\"Not Available\")","v":"-"}]
[]
["In-Unit Clothes Dryer","Date Manufactured"]
[null,"Clothes Dryer Type"]
[null,"Average total weight of clothes per cycle (lbs/cycle)\n\nHelpful Note: ENERGY STAR's Product Finder assumes 8.45 lbs for standard dryers and 3 lbs for compact dryers."]
[null,"Combined Energy Factor (lbs/kWh)",{"$f":"IFERROR(IF(C23=\"\",\"-\",VLOOKUP(C21&C22,Lookups!AH11:AJ23,3,FALSE)),\"-\")","v":"-"}]
[null,"kWh/cycle",{"$f":"IFERROR(IF(C23=\"\",\"-\",C23/C24),\"-\")","v":"-"}]
[]
["Source","Technical Resource Manual (TRM): New York Standard Approach for Estimating Energy\nSavings from Energy Efficiency Programs –\nResidential, Multi-Family, and Commercial/Industrial Measures\nVersion 7\n\nElectronic Code of Federal Regulations §430.32   Energy and water conservation standards and their compliance dates.\nhttps://ecfr.io/Title-10/Section-430.32\n\nENERGY STAR Product Finder, Clothes Dryer Key Product Criteria\nhttps://www.energystar.gov/products/appliances/clothes_dryers/key_product_criteria"]

{"sheet":"Low-Flow Fixtures","index":2,"n_rows":8,"n_cols":3,"rows_kept":8,"cut":false,"hidden":false,"merged":[[7,1,7,2],[0,0,0,2],[2,0,5,0]]}
["Instructions: Please use the below existing flow rates per fixture based on fixture type for your calculations."]
[]
["Low-Flow Fixtures","Fixture Type","Existing GPM or GPF"]
[null,"Bathroom faucets/ replacement aerators","2.2 gpm @ 60 psi"]
[null,"Kitchen faucets/ replacement aerators","2.2 gpm @ 60 psi"]
[null,"Showerhead","2.5 gpm @ 80 psi"]
[]
["Source","Technical Resource Manual (TRM): New York Standard Approach for Estimating Energy\nSavings from Energy Efficiency Programs –\nResidential, Multi-Family, and Commercial/Industrial Measures\nVersion 7\n\nElectronic Code of Federal Regulations §430.32   Energy and water conservation standards and their compliance dates.\nhttps://ecfr.io/Title-10/Section-430.32"]

{"sheet":"Lighting","index":3,"n_rows":31,"n_cols":3,"rows_kept":31,"cut":false,"hidden":false,"merged":[[0,0,0,2],[2,0,28,0]]}
["Instructions:  Please use the below existing watts per fixture based on fixture type for your calculations. Please note, it is not typical to have more than 3% source energy reduction for an in-unit lighting retrofit measure compared to the whole building source consumption (1)."]
[]
["In-Unit Lighting","Typical Existing Fixture Type","Typical Existing Fixture Watts"]
[null,"Incandescent A-lamp",60]
[null,"Incandescent globe lamp",40]
[null,"BR30 incandescent reflector lamp",65]
[null,"BR40 incandescent reflector lamp",65]
[null,"BR30 halogen IR reflector lamp",45]
[null,"PAR30 halogen reflector lamp",50]
[null,"PAR38 halogen reflector lamp",90]
[null,"4-foot T12 linear fluorescent lamp",40]
[null,"3-foot T12 linear fluorescent lamp",30]
[null,"2-foot T12 linear fluorescent lamp",20]
[null,"4-foot T8 linear fluorescent lamp",32]
[null,"3-foot T8 linear fluorescent lamp",26]
[null,"21-inch T5 linear fluorescent lamp",13]
[null,"Screwbase CFL",14]
[null,"Covered CFL (A-lamp shape)",15]
[null,"Covered CFL (globe-shape)",9]
[null,"Covered CFL (globe-shape, with candelabra-base)",9]
[null,"Covered CFL (capsule-shape)",14]
[null,"Covered FL (reflector-shape)",15]
[null,"CFL (GU24 Base)",9]
[null,"Screwbase LED (A-lamp shape)",12]
[null,"Screwbase LED (globe-shape)",8]
[null,"Screwbase LED reflector (PAR20 shape)",9]
[null,"Screwbase LED reflector (BR30 shape",13]
[null,"Screwbase LED reflector (PAR30 shape, outdoor-rated)",15]
[null,"Screwbase LED reflector (PAR38 shape, outdoor-rated)",24]
[]
["Source: ","(1) Realizing Measurable Savings in Multifamily Buildings: Results from NYSERDA's Multifamily Performance Program (Table 1: Energy Conservation Measures)  https://www.aceee.org/files/proceedings/2014/data/papers/2-414.pdf\n\n(2) The Lighting Field Guide Upgrading to LEDs for Multi-family Housing\nhttps://www.lrc.rpi.edu/programs/solidstate/assist/pdf/multifamilyLEDGuide.pdf"]

{"sheet":"Cooling","index":4,"n_rows":15,"n_cols":3,"rows_kept":15,"cut":false,"hidden":false,"merged":[[0,0,0,2],[14,1,14,2],[9,0,12,0],[2,0,7,0]]}
["Instructions: Please fill out the blue cells with item details. Assumed existing energy details will be auto-populated in the white cells. Please use these auto-populated assumed existing values in your calculations."]
[]
["Room Air Conditioners (RAC)","Date Manufactured"]
[null,"Are there Louvered Sides?\n\nPlease note:\n-Room air conditioner units without louvered sides are also referred to as “through the wall” units. These units may also be referred to as “built-in” units.\n-If Casement, select NA. \"Casement only\" refers to a RAC designed for mounting in a casement window with an encased assembly with a width of 14.8 inches or less and a height of 11.2 inches or less. "]
[null,"Is Reverse Cycle Present?\n\nPlease note:\n-Reverse Cycle: A RAC that employs a means for reversing the function of the indoor and outdoor coils such that the indoor coil becomes the refrigerating system condenser, allowing for heating of the air in the conditioned space; similarly, the outdoor coil becomes the evaporator, utilizing outdoor air as a source of heat.\n-If Casement, select NA. \"Casement only\" refers to a RAC designed for mounting in a casement window with an encased assembly with a width of 14.8 inches or less and a height of 11.2 inches or less. "]
[null,"Lookup",{"$f":"C4&C5","v":""}]
[null,"Existing Unit Capacity\n\nPlease note:\n-Casement-only: A RAC designed for mounting in a casement window with an encased assembly with a width of 14.8 inches or less and a height of 11.2 inches or less.\n-Casement-slider: A RAC with an encased assembly designed for mounting in a sliding or casement window with a width of 15.5 inches or less."]
[null,"Energy Efficiency Ratio (EER)",{"$f":"IFERROR(IF(C3=Lookups!AW8,VLOOKUP(C3&C4&C5&C7,Lookups!AV10:AW29,2,FALSE),IF(C3=Lookups!AY8,VLOOKUP(C3&C4&C5&C7,Lookups!AX10:AY29,2,FALSE),\"-\")),\"-\")","v":"-"}]
[]
["Central Air Conditioners and Heat Pumps","Existing Unit Description"]
[null,"Seasonal Energy Efficiency Ratio (SEER)",{"$f":"IFERROR(VLOOKUP(C10,Lookups!AQ31:AT38,2,FALSE),\"-\")","v":"-"}]
[null,"Heating Seasonal Performance Factor (HSPF)",{"$f":"IFERROR(VLOOKUP(C10,Lookups!AQ31:AT38,3,FALSE),\"-\")","v":"-"}]
[null,"Average off mode power consumption (watts)",{"$f":"IFERROR(VLOOKUP(C10,Lookups!AQ31:AT38,4,FALSE),\"-\")","v":"-"}]
[]
["Source","Technical Resource Manual (TRM): New York Standard Approach for Estimating Energy\nSavings from Energy Efficiency Programs –\nResidential, Multi-Family, and Commercial/Industrial Measures\nVersion 7\n\nElectronic Code of Federal Regulations §430.32   Energy and water conservation standards and their compliance dates.\nhttps://ecfr.io/Title-10/Section-430.32\n\nENERGY STAR® Program Requirements for Room Air Conditioners\nhttps://www.energystar.gov/sites/default/files/specs/private/Room_Air_Conditioner_Program_Requirements_Version_3.pdf"]

{"sheet":"Lookups","index":5,"n_rows":73,"n_cols":56,"rows_kept":73,"cut":false,"hidden":true,"merged":[[7,1,8,1],[29,1,30,1]]}
["References","Refrigerators",null,null,null,null,"Dishwasher",null,null,null,null,null,"Clothes Washer",null,null,null,null,null,null,null,null,"Low Flow Fixtures",null,null,null,null,null,null,null,"In Unit Lighting",null,null,null,null,"Dryers",null,null,null,null,null,null,"Cooling"]
[]
[null,null,"Existing Consumption Guidance","Source",null,null,null,"Existing Consumption Guidance","Source",null,null,null,null,"Existing Consumption Guidance","Source",null,null,null,null,null,null,null,"Existing Consumption Guidance","Source",null,null,null,null,null,null,"Existing Consumption Guidance","Source",null,null,null,"Existing Consumption Guidance","Source",null,null,null,null,null,"Existing Consumption Guidance","Source"]
[null,"TRM","See Calculator Below","10 CFR 430.32 Energy and water conservation standards and their compliance dates\n\nhttps://www.ecfr.gov/cgi-bin/text-idx?SID=a9921a66f2b4f66a32ec851916b7b9d9&mc=true&node=se10.3.430_132&rgn=div8",null,null,"TRM","Manufactured on or after May 30th, 2013\nCompact: 222 kWh/yr ; 3.5 gallons/cycle\nStandard:307 kWh/yr; 5 gallons/ cycle","10 CFR 430.32 Energy and water conservation standards and their compliance dates\n\nhttps://www.law.cornell.edu/cfr/text/10/430.32",null,null,null,"TRM","Manufactured on or after January 1st, 2007\nTop Loading Compact (less than 1.6 ft3 capacity): 0.65 ft3/kWh/cycle\nTop Loading Standard (1.6 ft3 or greater capacity): 1.26 ft3/kWh/cycle\nFront Loading: 1.26 ft3/kWh/cycle\n\nManufactured on or after March 7th, 2015 and before January 1,2018\nTop Loading Compact (less than 1.6 ft3 capacity): 0.86 ft3/kWh/cycle Energy Factor; 14.4 gal/cycle/ft3 water factor\nTop Loading Standard (1.6 ft3 or greater capacity): 1.29 ft3/kWh/cycle Energy Factor; 8.4 gal/cycle/ft3 water factor\nFront Loading Compact (less than 1.6 ft3 capacity): 1.13 ft3/kWh/cycle Energy Factor; 8.3 gal/cycle/ft3 water factor\nFront Loading Standard (1.6 ft3 or greater capacity): 1.84 ft3/kWh/cycle Energy Factor; 4.7 gal/cycle/ft3 water factor","10 CFR 430.32 Energy and water conservation standards and their compliance dates\n\nhttps://www.law.cornell.edu/cfr/text/10/430.32",null,null,null,null,null,null,"TRM","See Calculator Below","TRM\n\n10 CFR 430.32 Energy and water conservation standards and their compliance dates\n\nhttps://www.law.cornell.edu/cfr/text/10/430.32",null,null,null,null,null,"The Lighting Field Guide Upgrading to LEDs for Multi-family Housing","See Calculator Below","(2) The Lighting Field Guide Upgrading to LEDs for Multi-family Housing\nhttps://www.lrc.rpi.edu/programs/solidstate/assist/pdf/multifamilyLEDGuide.pdf",null,null,"TRM","See Calculator Below","TRM\n\n10 CFR 430.32 Energy and water conservation standards and their compliance dates\n\nhttps://www.law.cornell.edu/cfr/text/10/430.32",null,null,null,null,"TRM","See Calculator Below","TRM\n\n10 CFR 430.32 Energy and water conservation standards and their compliance dates\n\nhttps://www.law.cornell.edu/cfr/text/10/430.32"]
[]
["TRM","Refrigerators",null,null,null,null,"Dishwasher",null,null,null,null,null,"Clothes Washer",null,null,null,null,null,null,null,null,"Low Flow Fixtures",null,null,null,null,null,null,null,null,null,null,null,null,"Dryers",null,null,null,null,null,null,"Cooling"]
["Before September 15, 2014",null,"AV: Adjusted Volume in ft3",null,null,null,null,null,null,null,null,null,null,null,null,null,null,null,null,null,null,null,null,null,null,null,null,null,null,null,null,null,"Manufactured on or before January 1, 2015",null,null,null,null,null,null,null,{"$f":"AQ9","v":0}]
["September 15, 2014 and after","Product class","Energy standard equations for maximum energy use","Formula",null,null,"Dishwasher Type","kWh/yr","Gallon/cycle",null,null,null,"Manufactured on or after January 1st, 2007",null,{"$f":"M8","v":"Manufactured on or after January 1st, 2007"},"ft3/kWh/cycle Energy Factor","gal/cycle/ft3 water factor",null,null,null,null,"Manufactured after January 1, 1994",null,null,null,null,null,null,null,"Lamp Type","Power (watts)",null,"Manufactured after January 1, 2015",null,null,null,null,null,null,null,{"$f":"AQ31","v":"Central Air Conditioners and Heat Pumps"},null,null,null,null,null,null,null,"Before May 31, 2014",null,"After May 31, 2014"]
[null,null,"(kWh/yr)","(kWh/yr)",null,null,"Compact",222,3.5,null,null,null,"Manufactured between March 7th, 2015 and January 1st, 2018",{"$f":"$O$8&O9","v":"Manufactured on or after January 1st, 2007Top Loading Compact (less than 1.6 ft3 capacity)"},"Top Loading Compact (less than 1.6 ft3 capacity)",0.65,"NA",null,null,null,null,null,"Faucet type","Maximum flow rate",null,null,null,null,null,"Incandescent A-lamp",60,null,null,null,null,"Manufactured on or before January 1, 2015",null,null,null,null,{"$f":"AW8","v":"Before May 31, 2014"},null,null,"Is Reverse Cycle Present?","Are there Louvered Sides?","Lookup","Capacity","Lookup","EER","Lookup","EER","YesNo","NoNo","YesYes","NoYes","NANA"]
[{"$f":"\"Before September 15, 2014\"&B10","v":"Before September 15, 2014Refrigerators and refrigerator-freezers with manual defrost"},"Refrigerators and refrigerator-freezers with manual defrost","8.82AV + 248.4",{"$f":"8.82*Appliances!$C$5+248.4","v":248.4},null,null,"Standard",307,5,null,null,null,null,{"$f":"$O$8&O10","v":"Manufactured on or after January 1st, 2007Top Loading Standard (1.6 ft3 or greater capacity)"},"Top Loading Standard (1.6 ft3 or greater capacity)",1.26,"NA",null,null,null,null,null,"Bathroom faucets/ replacement aerators","2.2 gpm @ 60 psi",null,null,null,null,null,"Incandescent globe lamp",40,null,null,null,null,"Energy Factor (lbs/kWh)",null,null,null,null,{"$f":"AY8","v":"After May 31, 2014"},null,"Without reverse cycle, with louvered sides, and less than 6,000 Btu/h","No","Yes",{"$f":"AS10&AR10","v":"YesNo"},"< 6,000 Btu/h",{"$f":"$AW$8&AS10&AR10&AU10","v":"Before May 31, 2014YesNo< 6,000 Btu/h"},9.6999999999999993,{"$f":"$AY$8&AS10&AR10&AU10","v":"After May 31, 2014YesNo< 6,000 Btu/h"},11,"< 6,000 Btu/h","< 6,000 Btu/h","< 20,000 Btu/h","14,000 Btu/h","NA - Casement Only"]
[{"$f":"\"Before September 15, 2014\"&B11","v":"Before September 15, 2014Refrigerator-freezers—partial automatic defrost"},"Refrigerator-freezers—partial automatic defrost","8.82AV + 248.4",{"$f":"8.82*Appliances!$C$5+248.4","v":248.4},null,null,null,null,null,null,null,null,null,{"$f":"$O$8&O11","v":"Manufactured on or after January 1st, 2007Front Loading"},"Front Loading",1.26,"NA",null,null,null,null,null,"Kitchen faucets/ replacement aerators","2.2 gpm @ 60 psi",null,null,null,null,null,"BR30 incandescent reflector lamp",65,null,null,{"$f":"$AG$7&AI11","v":"Manufactured on or before January 1, 2015Electric, Standard (4.4 ft 3 or greater capacity)"},"Electric, Standard (4.4 ft 3 or greater capacity)",3.01,null,null,null,null,null,null,"Without reverse cycle, with louvered sides, and 6,000 to 7,999 Btu/h","No","Yes",{"$f":"AS11&AR11","v":"YesNo"},"6,000 to 7,999 Btu/h",{"$f":"$AW$8&AS11&AR11&AU11","v":"Before May 31, 2014YesNo6,000 to 7,999 Btu/h"},9.6999999999999993,{"$f":"$AY$8&AS11&AR11&AU11","v":"After May 31, 2014YesNo6,000 to 7,999 Btu/h"},11,"6,000 to 7,999 Btu/h","6,000 to 7,999 Btu/h","20,000 Btu/h or more","14,000 Btu/h or more","NA - Casement Slider"]
["Before September 15, 2014Refrigerator-freezers—automatic defrost with top-mounted freezer without through-the-door ice service and all-refrigerator—automatic defrost","Refrigerator-freezers—automatic defrost with top-mounted freezer without through-the-door ice service and all-refrigerator—automatic defrost","9.80AV + 276.0",{"$f":"9.8*Appliances!$C$5+276","v":276},null,null,null,null,null,null,null,null,null,null,null,null,null,null,null,null,null,null,"Showerhead","2.5 gpm @ 80 psi",null,null,null,null,null,"BR40 incandescent reflector lamp",65,null,null,{"$f":"$AG$7&AI12","v":"Manufactured on or before January 1, 2015Electric, Compact (120V) (less than 4.4 ft 3 capacity)"},"Electric, Compact (120V) (less than 4.4 ft 3 capacity)",3.13,null,null,null,null,null,null,"Without reverse cycle, with louvered sides, and 8,000 to 13,999 Btu/h","No","Yes","YesNo","8,000 to 10,999 Btu/h","Before May 31, 2014YesNo8,000 to 10,999 Btu/h",9.8000000000000007,"After May 31, 2014YesNo8,000 to 10,999 Btu/h",10.9,"8,000 to 10,999 Btu/h","8,000 to 10,999 Btu/h"]
["Before September 15, 2014Refrigerator-freezers—automatic defrost with side-mounted freezer without through-the-door ice service","Refrigerator-freezers—automatic defrost with side-mounted freezer without through-the-door ice service","4.91AV + 507.5",{"$f":"4.91*Appliances!$C$5+507.5","v":507.5},null,null,null,null,null,null,null,null,null,null,{"$f":"M9","v":"Manufactured between March 7th, 2015 and January 1st, 2018"},"ft3/kWh/cycle Energy Factor","gal/cycle/ft3 water factor",null,null,null,null,null,"Toilets","1.6 gpf",null,null,null,null,null,"BR30 halogen IR reflector lamp",45,null,null,{"$f":"$AG$7&AI13","v":"Manufactured on or before January 1, 2015Electric, Compact (240V) (less than 4.4 ft 3 capacity)"},"Electric, Compact (240V) (less than 4.4 ft 3 capacity)",2.9,null,null,null,null,null,null,"Without reverse cycle, with louvered sides, and 8,000 to 13,999 Btu/h","No","Yes","YesNo","11,000 to 13,999 Btu/h","Before May 31, 2014YesNo11,000 to 13,999 Btu/h",9.8000000000000007,"After May 31, 2014YesNo11,000 to 13,999 Btu/h",10.9,"11,000 to 13,999 Btu/h","11,000 to 13,999 Btu/h"]
["Before September 15, 2014Refrigerator-freezers—automatic defrost with bottom-mounted freezer without through-the-door ice service","Refrigerator-freezers—automatic defrost with bottom-mounted freezer without through-the-door ice service","4.60AV + 459.0",{"$f":"4.6*Appliances!$C$5+459","v":459},null,null,null,null,null,null,null,null,null,{"$f":"$O$13&O14","v":"Manufactured between March 7th, 2015 and January 1st, 2018Top Loading Compact (less than 1.6 ft3 capacity)"},"Top Loading Compact (less than 1.6 ft3 capacity)",0.86,14.4,null,null,null,null,null,null,null,null,null,null,null,null,"PAR30 halogen reflector lamp",50,null,null,{"$f":"$AG$7&AI14","v":"Manufactured on or before January 1, 2015Gas"},"Gas",2.67,null,null,null,null,null,null,"Without reverse cycle, with louvered sides, and 14,000 to 19,999 Btu/h","No","Yes","YesNo","14,000 to 19,999 Btu/h","Before May 31, 2014YesNo14,000 to 19,999 Btu/h",9.6999999999999993,"After May 31, 2014YesNo14,000 to 19,999 Btu/h",10.7,"14,000 to 19,999 Btu/h","14,000 to 19,999 Btu/h"]
["Before September 15, 2014Refrigerator-freezers—automatic defrost with top-mounted freezer with through-the-door ice service","Refrigerator-freezers—automatic defrost with top-mounted freezer with through-the-door ice service","10.20AV + 356.0",{"$f":"10.2*Appliances!$C$5+356","v":356},null,null,null,null,null,null,null,null,null,{"$f":"$O$13&O15","v":"Manufactured between March 7th, 2015 and January 1st, 2018Top Loading Standard (1.6 ft3 or greater capacity)"},"Top Loading Standard (1.6 ft3 or greater capacity)",1.1299999999999999,8.4,null,null,null,null,null,null,null,null,null,null,null,null,"PAR38 halogen reflector lamp",90,null,null,null,null,null,null,null,null,null,null,null,"Without reverse cycle, with louvered sides, and 20,000 to 27,999 Btu/h","No","Yes","YesNo","20,000 to 27,999 Btu/h","Before May 31, 2014YesNo20,000 to 27,999 Btu/h",8.5,"After May 31, 2014YesNo20,000 to 27,999 Btu/h",9.4,"20,000 to 27,999 Btu/h","20,000 to 27,999 Btu/h"]
["Before September 15, 2014Refrigerator-freezers—automatic defrost with side-mounted freezer with through-the-door ice service","Refrigerator-freezers—automatic defrost with side-mounted freezer with through-the-door ice service","10.10AV + 406.0",{"$f":"10.1*Appliances!$C$5+406","v":406},null,null,null,null,null,null,null,null,null,{"$f":"$O$13&O16","v":"Manufactured between March 7th, 2015 and January 1st, 2018Front Loading Compact (less than 1.6 ft3 capacity)"},"Front Loading Compact (less than 1.6 ft3 capacity)",1.1299999999999999,8.3000000000000007,null,null,null,null,null,null,null,null,null,null,null,null,"4-foot T12 linear fluorescent lamp",40,null,null,null,null,"Manufactured after January 1, 2015",null,null,null,null,null,null,"Without reverse cycle, with louvered sides, and 28,000 Btu/h or more","No","Yes","YesNo","28,000 Btu/h or more","Before May 31, 2014YesNo28,000 Btu/h or more",8.5,"After May 31, 2014YesNo28,000 Btu/h or more",9,"28,000 Btu/h or more","28,000 Btu/h or more"]
["Before September 15, 2014Upright freezers with manual defrost","Upright freezers with manual defrost","7.55AV + 258.3",{"$f":"7.55*Appliances!$C$5+258.3","v":258.3},null,null,null,null,null,null,null,null,null,{"$f":"$O$13&O17","v":"Manufactured between March 7th, 2015 and January 1st, 2018Front Loading Standard (1.6 ft3 or greater capacity)"},"Front Loading Standard (1.6 ft3 or greater capacity)",1.84,4.7,null,null,null,null,null,null,null,null,null,null,null,null,"3-foot T12 linear fluorescent lamp",30,null,null,null,null,"Energy Factor (lbs/kWh)",null,null,null,null,null,null,"Without reverse cycle, without louvered sides, and less than 6,000 Btu/h","No","No","NoNo","< 6,000 Btu/h","Before May 31, 2014NoNo< 6,000 Btu/h",9,"After May 31, 2014NoNo< 6,000 Btu/h",10]
["Before September 15, 2014Upright freezers with automatic defrost","Upright freezers with automatic defrost","12.43AV + 326.1",{"$f":"12.43*Appliances!$C$5+326.1","v":326.10000000000002},null,null,null,null,null,null,null,null,null,null,null,null,null,null,null,null,null,null,null,null,null,null,null,null,null,"2-foot T12 linear fluorescent lamp",20,null,null,{"$f":"$AG$8&AI18","v":"Manufactured after January 1, 2015Vented Electric, Standard (4.4 ft 3 or greater capacity)"},"Vented Electric, Standard (4.4 ft 3 or greater capacity)",3.73,null,null,null,null,null,null,"Without reverse cycle, without louvered sides, and 6,000 to 7,999 Btu/h","No","No","NoNo","6,000 to 7,999 Btu/h","Before May 31, 2014NoNo6,000 to 7,999 Btu/h",9,"After May 31, 2014NoNo6,000 to 7,999 Btu/h",10]
["Before September 15, 2014Chest freezers and all other freezers except compact freezers","Chest freezers and all other freezers except compact freezers","9.88AV + 143.7",{"$f":"9.88*Appliances!$C$5+143.7","v":143.69999999999999},null,null,null,null,null,null,null,null,null,null,null,null,null,null,null,null,null,null,null,null,null,null,null,null,null,"4-foot T8 linear fluorescent lamp",32,null,null,"Manufactured after January 1, 2015Vented Electric, Compact (120V) (less than 4.4 ft 3 capacity)","Vented Electric, Compact (120V) (less than 4.4 ft 3 capacity)",3.61,null,null,null,null,null,null,"Without reverse cycle, without louvered sides, and 8,000 to 10,999 Btu/h","No","No","NoNo","8,000 to 10,999 Btu/h","Before May 31, 2014NoNo8,000 to 10,999 Btu/h",8.5,"After May 31, 2014NoNo8,000 to 10,999 Btu/h",9.6]
["Before September 15, 2014Compact refrigerators and refrigerator-freezers with manual defrost","Compact refrigerators and refrigerator-freezers with manual defrost","10.70AV + 299.0",{"$f":"10.7*Appliances!$C$5+299","v":299},null,null,null,null,null,null,null,null,null,null,null,null,null,null,null,null,null,null,null,null,null,null,null,null,null,"3-foot T8 linear fluorescent lamp",26,null,null,"Manufactured after January 1, 2015Vented Electric, Compact (240V) (less than 4.4 ft 3 capacity)","Vented Electric, Compact (240V) (less than 4.4 ft 3 capacity)",3.27,null,null,null,null,null,null,"Without reverse cycle, without louvered sides, and 11,000 to 13,999 Btu/h","No","No","NoNo","11,000 to 13,999 Btu/h","Before May 31, 2014NoNo11,000 to 13,999 Btu/h",8.5,"After May 31, 2014NoNo11,000 to 13,999 Btu/h",9.5]
["Before September 15, 2014Compact refrigerator-freezer—partial automatic defrost","Compact refrigerator-freezer—partial automatic defrost","7.00AV + 398.0",{"$f":"7*Appliances!$C$5+398","v":398},null,null,null,null,null,null,null,null,null,null,null,null,null,null,null,null,null,null,null,null,null,null,null,null,null,"21-inch T5 linear fluorescent lamp",13,null,null,"Manufactured after January 1, 2015Vented Gas","Vented Gas",3.3,null,null,null,null,null,null,"Without reverse cycle, without louvered sides, and 14,000 to 19,999 Btu/h","No","No","NoNo","14,000 to 19,999 Btu/h","Before May 31, 2014NoNo14,000 to 19,999 Btu/h",8.5,"After May 31, 2014NoNo14,000 to 19,999 Btu/h",9.3000000000000007]
["Before September 15, 2014Compact refrigerator-freezers—automatic defrost with top-mounted freezer and compact all-refrigerator—automatic defrost","Compact refrigerator-freezers—automatic defrost with top-mounted freezer and compact all-refrigerator—automatic defrost","12.70AV + 355.0",{"$f":"12.7*Appliances!$C$5+355","v":355},null,null,null,null,null,null,null,null,null,null,null,null,null,null,null,null,null,null,null,null,null,null,null,null,null,"Screwbase CFL",14,null,null,"Manufactured after January 1, 2015Ventless Electric, Compact (240V) (less than 4.4 ft 3 capacity)","Ventless Electric, Compact (240V) (less than 4.4 ft 3 capacity)",2.5499999999999998,null,null,null,null,null,null,"Without reverse cycle, without louvered sides, and 20,000 Btu/h or more","No","No","NoNo","20,000 to 27,999 Btu/h","Before May 31, 2014NoNo20,000 to 27,999 Btu/h",8.5,"After May 31, 2014NoNo20,000 to 27,999 Btu/h",9.4]
["Before September 15, 2014Compact refrigerator-freezers—automatic defrost with side-mounted freezer","Compact refrigerator-freezers—automatic defrost with side-mounted freezer","7.60AV + 501.0",{"$f":"7.6*Appliances!$C$5+501","v":501},null,null,null,null,null,null,null,null,null,null,null,null,null,null,null,null,null,null,null,null,null,null,null,null,null,"Covered CFL (A-lamp shape)",15,null,null,"Manufactured after January 1, 2015Ventless Electric, Combination Washer-Dryer","Ventless Electric, Combination Washer-Dryer",2.08,null,null,null,null,null,null,"Without reverse cycle, without louvered sides, and 20,000 Btu/h or more","No","No","NoNo","28,000 Btu/h or more","Before May 31, 2014NoNo28,000 Btu/h or more",8.5,"After May 31, 2014NoNo28,000 Btu/h or more",9.4]
["Before September 15, 2014Compact refrigerator-freezers—automatic defrost with bottom-mounted freezer","Compact refrigerator-freezers—automatic defrost with bottom-mounted freezer","13.10AV + 367.0",{"$f":"13.1*Appliances!$C$5+367","v":367},null,null,null,null,null,null,null,null,null,null,null,null,null,null,null,null,null,null,null,null,null,null,null,null,null,"Covered CFL (globe-shape)",9,null,null,null,null,null,null,null,null,null,null,null,"With reverse cycle, with louvered sides, and less than 20,000 Btu/h","Yes","Yes","YesYes","< 20,000 Btu/h","Before May 31, 2014YesYes< 20,000 Btu/h",9,"After May 31, 2014YesYes< 20,000 Btu/h",9.8000000000000007]
["Before September 15, 2014Compact upright freezers with manual defrost","Compact upright freezers with manual defrost","9.78AV + 250.8",{"$f":"9.78*Appliances!$C$5+250.8","v":250.8},null,null,null,null,null,null,null,null,null,null,null,null,null,null,null,null,null,null,null,null,null,null,null,null,null,"Covered CFL (globe-shape, with candelabra-base)",9,null,null,null,null,null,null,null,null,null,null,null,"With reverse cycle, without louvered sides, and less than 14,000 Btu/h","Yes","No","NoYes","14,000 Btu/h","Before May 31, 2014NoYes14,000 Btu/h",8.5,"After May 31, 2014NoYes14,000 Btu/h",9.3000000000000007]
["Before September 15, 2014Compact upright freezers with automatic defrost","Compact upright freezers with automatic defrost","11.40AV + 391.0",{"$f":"11.4*Appliances!$C$5+391","v":391},null,null,null,null,null,null,null,null,null,null,null,null,null,null,null,null,null,null,null,null,null,null,null,null,null,"Covered CFL (capsule-shape)",14,null,null,null,null,null,null,null,null,null,null,null,"With reverse cycle, with louvered sides, and 20,000 Btu/h or more","Yes","Yes","YesYes","20,000 Btu/h or more","Before May 31, 2014YesYes20,000 Btu/h or more",8.5,"After May 31, 2014YesYes20,000 Btu/h or more",9.3000000000000007]
["Before September 15, 2014Compact chest freezers","Compact chest freezers","10.45AV + 152.0",{"$f":"10.45*Appliances!$C$5+152","v":152},null,null,null,null,null,null,null,null,null,null,null,null,null,null,null,null,null,null,null,null,null,null,null,null,null,"Covered FL (reflector-shape)",15,null,null,null,null,null,null,null,null,null,null,null,"With reverse cycle, without louvered sides, and 14,000 Btu/h or more","Yes","No","NoYes","14,000 Btu/h or more","Before May 31, 2014NoYes14,000 Btu/h or more",8,"After May 31, 2014NoYes14,000 Btu/h or more",8.6999999999999993]
[null,null,null,null,null,null,null,null,null,null,null,null,null,null,null,null,null,null,null,null,null,null,null,null,null,null,null,null,null,"CFL (GU24 Base)",9,null,null,null,null,null,null,null,null,null,null,null,"Casement-Only","NA","NA","NANA","NA - Casement Only","Before May 31, 2014NANANA - Casement Only",8.6999999999999993,"After May 31, 2014NANANA - Casement Only",9.5]
[null,null,null,null,null,null,null,null,null,null,null,null,null,null,null,null,null,null,null,null,null,null,null,null,null,null,null,null,null,"Screwbase LED (A-lamp shape)",12,null,null,null,null,null,null,null,null,null,null,null,"Casement-Slider","NA","NA","NANA","NA - Casement Slider","Before May 31, 2014NANANA - Casement Slider",9.5,"After May 31, 2014NANANA - Casement Slider",10.4]
[null,"Product class","Energy standard equations for maximum energy use","Formula",null,null,null,null,null,null,null,null,null,null,null,null,null,null,null,null,null,null,null,null,null,null,null,null,null,"Screwbase LED (globe-shape)",8,null,null,null,null,null,null,null,null,null,null,null,null,"On or after January 1, 2015"]
[null,null,"(kWh/yr)","(kWh/yr)",null,null,null,null,null,null,null,null,null,null,null,null,null,null,null,null,null,null,null,null,null,null,null,null,null,"Screwbase LED reflector (PAR20 shape)",9,null,null,null,null,null,null,null,null,null,null,null,"Central Air Conditioners and Heat Pumps","Seasonal Energy Efficiency Ratio (SEER)","Heating Seasonal Performance Factor (HSPF)","Average off mode power consumption (watts)"]
[{"$f":"\"September 15, 2014 and after\"&B32","v":"September 15, 2014 and afterRefrigerator-freezers and refrigerators other than all-refrigerators with manual defrost"},"Refrigerator-freezers and refrigerators other than all-refrigerators with manual defrost","7.99AV + 225.0",{"$f":"7.99*Appliances!$C$5+225","v":225},null,null,null,null,null,null,null,null,null,null,null,null,null,null,null,null,null,null,null,null,null,null,null,null,null,"Screwbase LED reflector (BR30 shape",13,null,null,null,null,null,null,null,null,null,null,null,"Split systems - air conditioners",13,"NA",30]
[{"$f":"\"September 15, 2014 and after\"&B33","v":"September 15, 2014 and afterAll-refrigerators—manual defrost"},"All-refrigerators—manual defrost","6.79AV + 193.6",{"$f":"6.79*Appliances!$C$5+193.6","v":193.6},null,null,null,null,null,null,null,null,null,null,null,null,null,null,null,null,null,null,null,null,null,null,null,null,null,"Screwbase LED reflector (PAR30 shape, outdoor-rated)",15,null,null,null,null,null,null,null,null,null,null,null,"Split systems - heat pumps",14,8.1999999999999993,33]
["September 15, 2014 and afterRefrigerator-freezers—partial automatic defrost","Refrigerator-freezers—partial automatic defrost","7.99AV + 225.0",{"$f":"7.99*Appliances!$C$5+225","v":225},null,null,null,null,null,null,null,null,null,null,null,null,null,null,null,null,null,null,null,null,null,null,null,null,null,"Screwbase LED reflector (PAR38 shape, outdoor-rated)",24,null,null,null,null,null,null,null,null,null,null,null,"Single package units - air conditioners",14,"-",30]
["September 15, 2014 and afterRefrigerator-freezers—automatic defrost with top-mounted freezer without an automatic icemaker","Refrigerator-freezers—automatic defrost with top-mounted freezer without an automatic icemaker","8.07AV + 233.7",{"$f":"8.07*Appliances!$C$5+233.7","v":233.7},null,null,null,null,null,null,null,null,null,null,null,null,null,null,null,null,null,null,null,null,null,null,null,null,null,null,null,null,null,null,null,null,null,null,null,null,null,null,"Single package units - heat pumps",14,8,33]
["September 15, 2014 and afterBuilt-in refrigerator-freezer—automatic defrost with top-mounted freezer without an automatic icemaker","Built-in refrigerator-freezer—automatic defrost with top-mounted freezer without an automatic icemaker","9.15AV + 264.9",{"$f":"9.15*Appliances!$C$5+264.9","v":264.89999999999998},null,null,null,null,null,null,null,null,null,null,null,null,null,null,null,null,null,null,null,null,null,null,null,null,null,null,null,null,null,null,null,null,null,null,null,null,null,null,"Small-duct, high-velocity systems",12,7.2,30]
["September 15, 2014 and afterRefrigerator-freezers—automatic defrost with top-mounted freezer with an automatic icemaker without through-the-door ice service","Refrigerator-freezers—automatic defrost with top-mounted freezer with an automatic icemaker without through-the-door ice service","8.07AV + 317.7",{"$f":"8.07*Appliances!$C$5+317.7","v":317.7},null,null,null,null,null,null,null,null,null,null,null,null,null,null,null,null,null,null,null,null,null,null,null,null,null,null,null,null,null,null,null,null,null,null,null,null,null,null,"Space-constrained products - air conditioners",12,"-",30]
["September 15, 2014 and afterBuilt-in refrigerator-freezers—automatic defrost with top-mounted freezer with an automatic icemaker without through-the-door ice service","Built-in refrigerator-freezers—automatic defrost with top-mounted freezer with an automatic icemaker without through-the-door ice service","9.15AV + 348.9",{"$f":"9.15*Appliances!$C$5+348.9","v":348.9},null,null,null,null,null,null,null,null,null,null,null,null,null,null,null,null,null,null,null,null,null,null,null,null,null,null,null,null,null,null,null,null,null,null,null,null,null,null,"Space-constrained products - heat pumps",12,7.4,33]
["September 15, 2014 and afterAll-refrigerators—automatic defrost","All-refrigerators—automatic defrost","7.07AV + 201.6",{"$f":"7.07*Appliances!$C$5+201.6","v":201.6}]
["September 15, 2014 and afterBuilt-in All-refrigerators—automatic defrost","Built-in All-refrigerators—automatic defrost","8.02AV + 228.5",{"$f":"8.02*Appliances!$C$5+228.5","v":228.5}]
["September 15, 2014 and afterRefrigerator-freezers—automatic defrost with side-mounted freezer without an automatic icemaker","Refrigerator-freezers—automatic defrost with side-mounted freezer without an automatic icemaker","8.51AV + 297.8",{"$f":"8.51*Appliances!$C$5+297.8","v":297.8}]
["September 15, 2014 and afterBuilt-In Refrigerator-freezers—automatic defrost with side-mounted freezer without an automatic icemaker","Built-In Refrigerator-freezers—automatic defrost with side-mounted freezer without an automatic icemaker","10.22AV + 357.4",{"$f":"10.22*Appliances!$C$5+357.4","v":357.4}]
["September 15, 2014 and afterRefrigerator-freezers—automatic defrost with side-mounted freezer with an automatic icemaker without through-the-door ice service","Refrigerator-freezers—automatic defrost with side-mounted freezer with an automatic icemaker without through-the-door ice service","8.51AV + 381.8",{"$f":"8.51*Appliances!$C$5+381.8","v":381.8}]
["September 15, 2014 and afterBuilt-In Refrigerator-freezers—automatic defrost with side-mounted freezer with an automatic icemaker without through-the-door ice service","Built-In Refrigerator-freezers—automatic defrost with side-mounted freezer with an automatic icemaker without through-the-door ice service","10.22AV + 441.4",{"$f":"10.22*Appliances!$C$5+441.4","v":441.4}]
["September 15, 2014 and after5. without an automatic icemaker","5. without an automatic icemaker","8.85AV + 317.0",{"$f":"8.85*Appliances!$C$5+317","v":317}]
["September 15, 2014 and afterBuilt-In Refrigerator-freezers—automatic defrost with bottom-mounted freezer without an automatic icemaker","Built-In Refrigerator-freezers—automatic defrost with bottom-mounted freezer without an automatic icemaker","9.40AV + 336.9",{"$f":"9.4*Appliances!$C$5+336.9","v":336.9}]
["September 15, 2014 and afterRefrigerator-freezers—automatic defrost with bottom-mounted freezer with an automatic icemaker without through-the-door ice service","Refrigerator-freezers—automatic defrost with bottom-mounted freezer with an automatic icemaker without through-the-door ice service","8.85AV + 401.0",{"$f":"8.85*Appliances!$C$5+401","v":401}]
["September 15, 2014 and afterBuilt-In Refrigerator-freezers—automatic defrost with bottom-mounted freezer with an automatic icemaker without through-the-door ice service","Built-In Refrigerator-freezers—automatic defrost with bottom-mounted freezer with an automatic icemaker without through-the-door ice service","9.40AV + 420.9",{"$f":"9.4*Appliances!$C$5+420.9","v":420.9}]
["September 15, 2014 and afterRefrigerator-freezer—automatic defrost with bottom-mounted freezer with through-the-door ice service","Refrigerator-freezer—automatic defrost with bottom-mounted freezer with through-the-door ice service","9.25AV + 475.4",{"$f":"9.25*Appliances!$C$5+475.4","v":475.4}]
["September 15, 2014 and afterBuilt-in refrigerator-freezer—automatic defrost with bottom-mounted freezer with through-the-door ice service","Built-in refrigerator-freezer—automatic defrost with bottom-mounted freezer with through-the-door ice service","9.83AV + 499.9",{"$f":"9.83*Appliances!$C$5+499.9","v":499.9}]
["September 15, 2014 and afterRefrigerator-freezers—automatic defrost with top-mounted freezer with through-the-door ice service","Refrigerator-freezers—automatic defrost with top-mounted freezer with through-the-door ice service","8.40AV + 385.4",{"$f":"8.4*Appliances!$C$5+385.4","v":385.4}]
["September 15, 2014 and afterRefrigerator-freezers—automatic defrost with side-mounted freezer with through-the-door ice service","Refrigerator-freezers—automatic defrost with side-mounted freezer with through-the-door ice service","8.54AV + 432.8",{"$f":"8.54*Appliances!$C$5+432.8","v":432.8}]
["September 15, 2014 and afterBuilt-In Refrigerator-freezers—automatic defrost with side-mounted freezer with through-the-door ice service","Built-In Refrigerator-freezers—automatic defrost with side-mounted freezer with through-the-door ice service","10.25AV + 502.6",{"$f":"10.25*Appliances!$C$5+502.6","v":502.6}]
["September 15, 2014 and afterUpright freezers with manual defrost","Upright freezers with manual defrost","5.57AV + 193.7",{"$f":"5.57*Appliances!$C$5+193.7","v":193.7}]
["September 15, 2014 and afterUpright freezers with automatic defrost without an automatic icemaker","Upright freezers with automatic defrost without an automatic icemaker","8.62AV + 228.3",{"$f":"8.62*Appliances!$C$5+228.3","v":228.3}]
["September 15, 2014 and afterUpright freezers with automatic defrost with an automatic icemaker","Upright freezers with automatic defrost with an automatic icemaker","8.62AV + 312.3",{"$f":"8.62*Appliances!$C$5+312.3","v":312.3}]
["September 15, 2014 and afterBuilt-In Upright freezers with automatic defrost without an automatic icemaker","Built-In Upright freezers with automatic defrost without an automatic icemaker","9.86AV + 260.9",{"$f":"9.86*Appliances!$C$5+260.9","v":260.89999999999998}]
["September 15, 2014 and afterBuilt-in upright freezers with automatic defrost with an automatic icemaker","Built-in upright freezers with automatic defrost with an automatic icemaker","9.86AV + 344.9",{"$f":"9.86*Appliances!$C$5+344.9","v":344.9}]
["September 15, 2014 and afterChest freezers and all other freezers except compact freezers","Chest freezers and all other freezers except compact freezers","7.29AV + 107.8",{"$f":"7.29*Appliances!$C$5+107.8","v":107.8}]
["September 15, 2014 and afterChest freezers with automatic defrost","Chest freezers with automatic defrost","10.24AV + 148.1",{"$f":"10.24*Appliances!$C$5+148.1","v":148.1}]
["September 15, 2014 and afterCompact refrigerator-freezers and refrigerators other than all-refrigerators with manual defrost","Compact refrigerator-freezers and refrigerators other than all-refrigerators with manual defrost","9.03AV + 252.3",{"$f":"9.03*Appliances!$C$5+252.3","v":252.3}]
["September 15, 2014 and afterCompact all-refrigerators—manual defrost","Compact all-refrigerators—manual defrost","7.84AV + 219.1",{"$f":"7.84*Appliances!$C$5+219.1","v":219.1}]
["September 15, 2014 and afterCompact refrigerator-freezers—partial automatic defrost","Compact refrigerator-freezers—partial automatic defrost","5.91AV + 335.8",{"$f":"5.91*Appliances!$C$5+335.8","v":335.8}]
["September 15, 2014 and afterCompact refrigerator-freezers—automatic defrost with top-mounted freezer","Compact refrigerator-freezers—automatic defrost with top-mounted freezer","11.80AV + 339.2",{"$f":"11.8*Appliances!$C$5+339.2","v":339.2}]
["September 15, 2014 and afterCompact refrigerator-freezers—automatic defrost with top-mounted freezer with an automatic icemaker","Compact refrigerator-freezers—automatic defrost with top-mounted freezer with an automatic icemaker","11.80AV + 423.2",{"$f":"11.8*Appliances!$C$5+423.2","v":423.2}]
["September 15, 2014 and afterCompact all-refrigerators—automatic defrost","Compact all-refrigerators—automatic defrost","9.17AV + 259.3",{"$f":"9.17*Appliances!$C$5+259.3","v":259.3}]
["September 15, 2014 and afterCompact refrigerator-freezers—automatic defrost with side-mounted freezer","Compact refrigerator-freezers—automatic defrost with side-mounted freezer","6.82AV + 456.9",{"$f":"6.82*Appliances!$C$5+456.9","v":456.9}]
["September 15, 2014 and afterCompact refrigerator-freezers—automatic defrost with side-mounted freezer with an automatic icemaker","Compact refrigerator-freezers—automatic defrost with side-mounted freezer with an automatic icemaker","6.82AV + 540.9",{"$f":"6.82*Appliances!$C$5+540.9","v":540.9}]
["September 15, 2014 and afterCompact refrigerator-freezers—automatic defrost with bottom-mounted freezer","Compact refrigerator-freezers—automatic defrost with bottom-mounted freezer","11.80AV + 339.2",{"$f":"11.8*Appliances!$C$5+339.2","v":339.2}]
["September 15, 2014 and afterCompact refrigerator-freezers—automatic defrost with bottom-mounted freezer with an automatic icemaker","Compact refrigerator-freezers—automatic defrost with bottom-mounted freezer with an automatic icemaker","11.80AV + 423.2",{"$f":"11.8*Appliances!$C$5+423.2","v":423.2}]
["September 15, 2014 and afterCompact upright freezers with manual defrost","Compact upright freezers with manual defrost","8.65AV + 225.7",{"$f":"8.65*Appliances!$C$5+225.7","v":225.7}]
["September 15, 2014 and afterCompact upright freezers with automatic defrost","Compact upright freezers with automatic defrost","10.17AV + 351.9",{"$f":"10.17*Appliances!$C$5+351.9","v":351.9}]
["September 15, 2014 and afterCompact chest freezers","Compact chest freezers","9.25AV + 136.8",{"$f":"9.25*Appliances!$C$5+136.8","v":136.80000000000001}]